[Event "Live Chess"]
[Site "Chess.com"]
[Date "2023.05.20"]
[Round "-"]
[White "1600x"]
[Black "raminguy"]
[Result "1-0"]
[WhiteElo "1552"]
[BlackElo "1970"]
[TimeControl "300"]
[EndTime "10:42:19 PDT"]
[Termination "1600x won by resignation"]

1. d4 {[%clk 0:04:31.2]} 1... d5 {[%clk 0:04:57.7]} 2. Nf3 {[%clk 0:04:28.5]}
2... e6 {[%clk 0:04:57]} 3. Bf4 {[%clk 0:04:19.4]} 3... Bd6 {[%clk 0:04:55.2]}
4. Bxd6 {[%clk 0:04:18.3]} 4... Qxd6 {[%clk 0:04:55.1]} 5. Nbd2 {[%clk
0:04:16.9]} 5... Nf6 {[%clk 0:04:54]} 6. e3 {[%clk 0:04:15.7]} 6... O-O {[%clk
0:04:53.2]} 7. c3 {[%clk 0:04:14.4]} 7... c6 {[%clk 0:04:52.6]} 8. Be2 {[%clk
0:04:13.4]} 8... Nbd7 {[%clk 0:04:51.4]} 9. O-O {[%clk 0:04:07.1]} 9... e5
{[%clk 0:04:50.6]} 10. dxe5 {[%clk 0:04:05.1]} 10... Nxe5 {[%clk 0:04:50]} 11.
Nxe5 {[%clk 0:04:03.9]} 11... Qxe5 {[%clk 0:04:49.5]} 12. h3 {[%clk 0:04:02.7]}
12... Qg5 {[%clk 0:04:42.9]} 13. Nf3 {[%clk 0:04:00.6]} 13... Qg6 {[%clk
0:04:39.5]} 14. Ne5 {[%clk 0:03:59]} 14... Qf5 {[%clk 0:04:35.3]} 15. Nf3 {[%clk
0:03:57.4]} 15... Ne4 {[%clk 0:04:33]} 16. a3 {[%clk 0:03:54.3]} 16... Re8
{[%clk 0:04:28.4]} 17. Bd3 {[%clk 0:03:37]} 17... Qg6 {[%clk 0:04:21]} 18. Nh4
{[%clk 0:03:15.3]} 18... Qh6 {[%clk 0:04:15.8]} 19. Nf3 {[%clk 0:03:08.2]} 19...
g5 {[%clk 0:03:57.1]} 20. Bxe4 {[%clk 0:02:58]} 20... Rxe4 {[%clk 0:03:52.2]}
21. Nd2 {[%clk 0:02:56.4]} 21... Rh4 {[%clk 0:03:47.7]} 22. Nf3 {[%clk
0:02:31.1]} 22... Re4 {[%clk 0:03:44.9]} 23. Nd2 {[%clk 0:02:07.3]} 23... Re7
{[%clk 0:03:36.8]} 24. Qa4 {[%clk 0:02:03.4]} 24... Qh5 {[%clk 0:03:28.2]} 25.
c4 {[%clk 0:02:01.5]} 25... g4 {[%clk 0:03:24.9]} 26. Qb4 {[%clk 0:01:59.7]}
26... Re8 {[%clk 0:03:14.2]} 27. hxg4 {[%clk 0:01:57.5]} 27... Bxg4 {[%clk
0:03:10]} 28. cxd5 {[%clk 0:01:55.1]} 28... cxd5 {[%clk 0:03:06.2]} 29. Qf4
{[%clk 0:01:43.8]} 29... Re5 {[%clk 0:02:52.3]} 30. f3 {[%clk 0:01:40.2]} 30...
Be6 {[%clk 0:02:40.5]} 31. Kf2 {[%clk 0:01:38.7]} 31... Rf5 {[%clk 0:02:30.2]}
32. Qd4 {[%clk 0:01:36.4]} 32... Qg6 {[%clk 0:02:07.9]} 33. Rg1 {[%clk
0:01:32.6]} 33... Rg5 {[%clk 0:02:03.3]} 34. g4 {[%clk 0:01:30.2]} 34... Rc8
{[%clk 0:01:51.3]} 35. Rgc1 {[%clk 0:01:27.7]} 35... Re8 {[%clk 0:01:46.3]} 36.
Rc7 {[%clk 0:01:25.8]} 36... Qh6 {[%clk 0:01:43.4]} 37. Qf4 {[%clk 0:01:23.2]}
37... Qh4+ {[%clk 0:01:40.1]} 38. Kg2 {[%clk 0:01:19.9]} 38... Bxg4 {[%clk
0:01:36.3]} 39. Qxf7+ {[%clk 0:01:16.3]} 39... Kh8 {[%clk 0:01:23.8]} 40. Qxe8+
{[%clk 0:01:14.9]} 40... Rg8 {[%clk 0:01:22.1]} 41. Qe5+ {[%clk 0:01:12.5]} 1-0

[Event "Live Chess"]
[Site "Chess.com"]
[Date "2023.05.20"]
[Round "-"]
[White "mach247"]
[Black "Singapourfeuj"]
[Result "0-1"]
[WhiteElo "1309"]
[BlackElo "2251"]
[TimeControl "300"]
[EndTime "10:42:20 PDT"]
[Termination "Singapourfeuj won by checkmate"]

1. e4 {[%clk 0:04:59.6]} 1... e6 {[%clk 0:04:58.4]} 2. d4 {[%clk 0:04:58.7]}
2... d5 {[%clk 0:04:57]} 3. e5 {[%clk 0:04:58.4]} 3... c5 {[%clk 0:04:54.1]} 4.
c3 {[%clk 0:04:57.8]} 4... Nc6 {[%clk 0:04:46.2]} 5. Nf3 {[%clk 0:04:57]} 5...
Qb6 {[%clk 0:04:37]} 6. Na3 {[%clk 0:04:56.4]} 6... cxd4 {[%clk 0:04:33.4]} 7.
cxd4 {[%clk 0:04:52.5]} 7... Bxa3 {[%clk 0:04:31.6]} 8. bxa3 {[%clk 0:04:49.8]}
8... Nh6 {[%clk 0:04:30.6]} 9. Bxh6 {[%clk 0:04:39.7]} 9... gxh6 {[%clk
0:04:29.6]} 10. Bd3 {[%clk 0:04:29.8]} 10... Bd7 {[%clk 0:04:27.8]} 11. O-O
{[%clk 0:04:28.8]} 11... Nxd4 {[%clk 0:04:26.7]} 12. Nxd4 {[%clk 0:04:27.9]}
12... Qxd4 {[%clk 0:04:25.5]} 13. Rb1 {[%clk 0:04:24.4]} 13... Qxe5 {[%clk
0:04:23.7]} 14. Rxb7 {[%clk 0:04:22.6]} 14... Bc6 {[%clk 0:04:22]} 15. Re1
{[%clk 0:04:09.6]} 15... Qf4 {[%clk 0:04:17.4]} 16. Rb4 {[%clk 0:04:06]} 16...
Qd6 {[%clk 0:04:14.4]} 17. Qh5 {[%clk 0:03:57.8]} 17... a5 {[%clk 0:04:03.6]}
18. Rb6 {[%clk 0:03:47]} 18... Qc5 {[%clk 0:03:58.3]} 19. Reb1 {[%clk
0:03:28.3]} 19... Rc8 {[%clk 0:03:49.8]} 20. h3 {[%clk 0:03:03.5]} 20... Rg8
{[%clk 0:03:45.5]} 21. Rxc6 {[%clk 0:02:39.8]} 21... Rxc6 {[%clk 0:03:39.9]} 22.
Bb5 {[%clk 0:02:37.2]} 22... Ke7 {[%clk 0:03:32.5]} 23. Bxc6 {[%clk 0:02:22.7]}
23... Qxc6 {[%clk 0:03:31.8]} 24. Qxh6 {[%clk 0:02:17.9]} 24... d4 {[%clk
0:03:30.8]} 25. Qxh7 {[%clk 0:02:16]} 25... Qxg2# {[%clk 0:03:28.8]} 0-1

[Event "Live Chess"]
[Site "Chess.com"]
[Date "2023.05.20"]
[Round "-"]
[White "PLZ909"]
[Black "Chesscoach_Golichenko"]
[Result "0-1"]
[WhiteElo "1405"]
[BlackElo "2651"]
[TimeControl "300"]
[EndTime "10:42:24 PDT"]
[Termination "Chesscoach_Golichenko won by checkmate"]

1. d4 {[%clk 0:04:59.5]} 1... Nf6 {[%clk 0:04:58.2]} 2. Bf4 {[%clk 0:04:58.5]}
2... e6 {[%clk 0:04:51.2]} 3. Nf3 {[%clk 0:04:56.2]} 3... b6 {[%clk 0:04:49.5]}
4. e3 {[%clk 0:04:53.9]} 4... Bb7 {[%clk 0:04:42.9]} 5. Bd3 {[%clk 0:04:48.4]}
5... Be7 {[%clk 0:04:42]} 6. Nbd2 {[%clk 0:04:46.8]} 6... O-O {[%clk 0:04:39.9]}
7. c3 {[%clk 0:04:42]} 7... c5 {[%clk 0:04:36.6]} 8. e4 {[%clk 0:04:32.5]} 8...
d6 {[%clk 0:04:32.7]} 9. e5 {[%clk 0:04:30.3]} 9... Nd5 {[%clk 0:04:29.9]} 10.
Bg3 {[%clk 0:04:03.2]} 10... dxe5 {[%clk 0:04:26]} 11. Nxe5 {[%clk 0:03:53.3]}
11... cxd4 {[%clk 0:04:23.6]} 12. cxd4 {[%clk 0:03:51.7]} 12... Nb4 {[%clk
0:04:15.8]} 13. Bb1 {[%clk 0:03:29.8]} 13... Qxd4 {[%clk 0:04:08]} 14. a3 {[%clk
0:03:03.3]} 14... Nd5 {[%clk 0:03:51.9]} 15. O-O {[%clk 0:02:42.6]} 15... Qxb2
{[%clk 0:03:15]} 16. Be4 {[%clk 0:02:10.4]} 16... f5 {[%clk 0:03:01]} 17. Bf3
{[%clk 0:01:55.9]} 17... f4 {[%clk 0:02:44.1]} 18. Ndc4 {[%clk 0:01:43.1]} 18...
Qb5 {[%clk 0:02:09.5]} 19. Rb1 {[%clk 0:01:32.1]} 19... Qe8 {[%clk 0:01:58.7]}
20. Bxf4 {[%clk 0:01:14.5]} 20... Rxf4 {[%clk 0:01:55.4]} 21. g3 {[%clk
0:01:08.3]} 21... Rf8 {[%clk 0:01:50.5]} 22. Bg2 {[%clk 0:01:05.2]} 22... Nc6
{[%clk 0:01:49.2]} 23. Ne3 {[%clk 0:00:55.9]} 23... Nxe5 {[%clk 0:01:47.6]} 24.
Nxd5 {[%clk 0:00:53.9]} 24... exd5 {[%clk 0:01:47]} 25. Bxd5+ {[%clk 0:00:49.7]}
25... Bxd5 {[%clk 0:01:46.9]} 26. Qxd5+ {[%clk 0:00:48.3]} 26... Nf7 {[%clk
0:01:46.8]} 27. Rbe1 {[%clk 0:00:45.8]} 27... Qd8 {[%clk 0:01:45.7]} 28. Qxd8
{[%clk 0:00:44.4]} 28... Bxd8 {[%clk 0:01:45.6]} 29. Kg2 {[%clk 0:00:42.5]}
29... Bf6 {[%clk 0:01:44.8]} 30. Kg1 {[%clk 0:00:41.5]} 30... Rfe8 {[%clk
0:01:44.6]} 31. Rxe8+ {[%clk 0:00:40]} 31... Rxe8 {[%clk 0:01:43.9]} 32. Kg2
{[%clk 0:00:39.9]} 32... Bc3 {[%clk 0:01:41.8]} 33. Rc1 {[%clk 0:00:37.3]} 33...
Bb2 {[%clk 0:01:40.4]} 34. Rc7 {[%clk 0:00:35.7]} 34... Bxa3 {[%clk 0:01:39.5]}
35. Rxa7 {[%clk 0:00:34.3]} 35... Bc5 {[%clk 0:01:39.4]} 36. Rc7 {[%clk
0:00:31]} 36... h6 {[%clk 0:01:38.2]} 37. h4 {[%clk 0:00:29.4]} 37... Re2 {[%clk
0:01:36.8]} 38. Rc8+ {[%clk 0:00:24.8]} 38... Kh7 {[%clk 0:01:35.5]} 39. Ra8
{[%clk 0:00:22.9]} 39... Rxf2+ {[%clk 0:01:34.3]} 40. Kh3 {[%clk 0:00:20.1]}
40... Ne5 {[%clk 0:01:33.4]} 41. Ra1 {[%clk 0:00:18.2]} 41... h5 {[%clk
0:01:31.7]} 42. Rh1 {[%clk 0:00:16.4]} 42... Ng4 {[%clk 0:01:28.3]} 43. Re1
{[%clk 0:00:14]} 43... Rh2# {[%clk 0:01:25.9]} 0-1

[Event "Live Chess"]
[Site "Chess.com"]
[Date "2023.05.20"]
[Round "-"]
[White "HoarseyHorsey"]
[Black "koljadar"]
[Result "0-1"]
[WhiteElo "1382"]
[BlackElo "1524"]
[TimeControl "300"]
[EndTime "10:42:27 PDT"]
[Termination "koljadar won by resignation"]

1. d4 {[%clk 0:04:53.4]} 1... e6 {[%clk 0:04:59.9]} 2. c4 {[%clk 0:04:50.9]}
2... f5 {[%clk 0:04:58.9]} 3. Nc3 {[%clk 0:04:49.8]} 3... Nf6 {[%clk 0:04:58.1]}
4. Bg5 {[%clk 0:04:48.7]} 4... Be7 {[%clk 0:04:57.3]} 5. e3 {[%clk 0:04:47.4]}
5... b6 {[%clk 0:04:55.9]} 6. h4 {[%clk 0:04:46.3]} 6... Bb7 {[%clk 0:04:54.6]}
7. Nf3 {[%clk 0:04:40.2]} 7... Ne4 {[%clk 0:04:47.7]} 8. Bxe7 {[%clk 0:04:38.2]}
8... Qxe7 {[%clk 0:04:46.3]} 9. Bd3 {[%clk 0:04:34.5]} 9... Na6 {[%clk
0:04:36.5]} 10. a3 {[%clk 0:04:28.8]} 10... Nxc3 {[%clk 0:04:29.4]} 11. bxc3
{[%clk 0:04:27]} 11... Qf6 {[%clk 0:04:00.4]} 12. Qe2 {[%clk 0:04:21]} 12... c5
{[%clk 0:03:50.9]} 13. d5 {[%clk 0:04:12.4]} 13... Qxc3+ {[%clk 0:03:49.2]} 0-1

[Event "Live Chess"]
[Site "Chess.com"]
[Date "2023.05.20"]
[Round "-"]
[White "BJAW87"]
[Black "ProfPoisson"]
[Result "1/2-1/2"]
[WhiteElo "1438"]
[BlackElo "1061"]
[TimeControl "300"]
[EndTime "10:42:34 PDT"]
[Termination "Game drawn - timeout vs insufficient material"]

1. e4 {[%clk 0:04:58.8]} 1... e5 {[%clk 0:04:56.5]} 2. Nc3 {[%clk 0:04:58]} 2...
Nf6 {[%clk 0:04:53.9]} 3. f4 {[%clk 0:04:56.3]} 3... d5 {[%clk 0:04:52.1]} 4.
fxe5 {[%clk 0:04:55.3]} 4... Nxe4 {[%clk 0:04:49.9]} 5. Qf3 {[%clk 0:04:54.2]}
5... Nxc3 {[%clk 0:04:47]} 6. bxc3 {[%clk 0:04:54.1]} 6... Nc6 {[%clk
0:04:42.6]} 7. d4 {[%clk 0:04:52.9]} 7... Be6 {[%clk 0:04:40.8]} 8. Bb5 {[%clk
0:04:46.2]} 8... a6 {[%clk 0:04:37.5]} 9. Bxc6+ {[%clk 0:04:44.8]} 9... bxc6
{[%clk 0:04:36.2]} 10. Qg3 {[%clk 0:04:42.7]} 10... Rb8 {[%clk 0:04:34.5]} 11.
Nf3 {[%clk 0:04:38.9]} 11... c5 {[%clk 0:04:28.2]} 12. O-O {[%clk 0:04:31.6]}
12... cxd4 {[%clk 0:04:25.3]} 13. cxd4 {[%clk 0:04:31.5]} 13... c5 {[%clk
0:04:20.2]} 14. Bg5 {[%clk 0:04:10.4]} 14... Qb6 {[%clk 0:04:13.2]} 15. c3
{[%clk 0:04:05.1]} 15... cxd4 {[%clk 0:04:10.8]} 16. cxd4 {[%clk 0:04:05]} 16...
Be7 {[%clk 0:03:53.7]} 17. Bxe7 {[%clk 0:04:00.5]} 17... Kxe7 {[%clk 0:03:52.1]}
18. Qxg7 {[%clk 0:03:56.7]} 18... Rhg8 {[%clk 0:03:47.3]} 19. Qf6+ {[%clk
0:03:55.1]} 19... Ke8 {[%clk 0:03:42.2]} 20. Ng5 {[%clk 0:03:51.5]} 20... Rg6
{[%clk 0:03:34.9]} 21. Qf4 {[%clk 0:03:19.6]} 21... Ke7 {[%clk 0:03:21.1]} 22.
Nxf7 {[%clk 0:03:07.8]} 22... Rbg8 {[%clk 0:03:08.6]} 23. Qh4+ {[%clk
0:03:02.2]} 23... Kd7 {[%clk 0:02:27.6]} 24. g3 {[%clk 0:02:53.4]} 24... Rg4
{[%clk 0:02:20.3]} 25. Qxh7 {[%clk 0:02:35.6]} 25... Qxd4+ {[%clk 0:02:00.6]}
26. Kg2 {[%clk 0:02:23.9]} 26... Qd2+ {[%clk 0:01:25.8]} 27. Rf2 {[%clk
0:02:17.8]} 27... R4g7 {[%clk 0:00:41.6]} 28. Qxg7 {[%clk 0:00:57.5]} 28...
Qxf2+ {[%clk 0:00:36.6]} 29. Kxf2 {[%clk 0:00:56.7]} 29... Rxg7 {[%clk
0:00:35.3]} 30. Nh6 {[%clk 0:00:49.7]} 30... Rh7 {[%clk 0:00:30.4]} 31. Rb1
{[%clk 0:00:34]} 31... Rxh6 {[%clk 0:00:28.9]} 32. Rb7+ {[%clk 0:00:33.1]} 32...
Kc6 {[%clk 0:00:27.6]} 33. Re7 {[%clk 0:00:31.5]} 33... Rxh2+ {[%clk 0:00:19.5]}
34. Kg1 {[%clk 0:00:30.7]} 34... Rh6 {[%clk 0:00:18]} 35. Kg2 {[%clk 0:00:29.9]}
35... Kc5 {[%clk 0:00:16.8]} 36. Rc7+ {[%clk 0:00:28.6]} 36... Kd4 {[%clk
0:00:15.6]} 37. Ra7 {[%clk 0:00:25.8]} 37... Kxe5 {[%clk 0:00:14]} 38. Rxa6
{[%clk 0:00:24.8]} 38... Bh3+ {[%clk 0:00:11.9]} 39. Kf3 {[%clk 0:00:24.4]}
39... Rxa6 {[%clk 0:00:11]} 40. g4 {[%clk 0:00:23.8]} 40... Rxa2 {[%clk
0:00:10.6]} 41. g5 {[%clk 0:00:23.2]} 41... Ra6 {[%clk 0:00:08.7]} 42. Kg3
{[%clk 0:00:22.9]} 42... Rg6 {[%clk 0:00:07.5]} 43. Kh4 {[%clk 0:00:22.5]} 43...
Rxg5 {[%clk 0:00:07.2]} 44. Kxg5 {[%clk 0:00:22]} 44... d4 {[%clk 0:00:06.7]}
45. Kh4 {[%clk 0:00:21.9]} 45... d3 {[%clk 0:00:06.2]} 46. Kxh3 {[%clk
0:00:21.8]} 46... d2 {[%clk 0:00:05.8]} 47. Kh4 {[%clk 0:00:21.7]} 47... d1=Q
{[%clk 0:00:04.8]} 48. Kg5 {[%clk 0:00:21.3]} 48... Qf3 {[%clk 0:00:03.7]} 49.
Kg6 {[%clk 0:00:20.8]} 49... Qf5+ {[%clk 0:00:02.5]} 50. Kg7 {[%clk 0:00:19.5]}
50... Qf6+ {[%clk 0:00:01.8]} 51. Kh7 {[%clk 0:00:18.9]} 51... Ke6 {[%clk
0:00:01.1]} 52. Kg8 {[%clk 0:00:18]} 1/2-1/2

[Event "Live Chess"]
[Site "Chess.com"]
[Date "2023.05.20"]
[Round "-"]
[White "MrDodgy"]
[Black "mattihelenius2"]
[Result "1-0"]
[WhiteElo "2320"]
[BlackElo "443"]
[TimeControl "300"]
[EndTime "10:42:36 PDT"]
[Termination "MrDodgy won by checkmate"]

1. e4 {[%clk 0:04:56.6]} 1... e5 {[%clk 0:04:59.9]} 2. Bc4 {[%clk 0:04:54.8]}
2... d6 {[%clk 0:04:59.8]} 3. Qh5 {[%clk 0:04:53.4]} 3... Qf6 {[%clk 0:04:58.3]}
4. Nf3 {[%clk 0:04:48.3]} 4... Be6 {[%clk 0:04:57]} 5. Bxe6 {[%clk 0:04:45.9]}
5... Qxe6 {[%clk 0:04:50.7]} 6. Nc3 {[%clk 0:04:43.5]} 6... Nc6 {[%clk
0:04:33.2]} 7. Nd5 {[%clk 0:04:39.5]} 7... g6 {[%clk 0:04:22.3]} 8. Qh4 {[%clk
0:04:30.9]} 8... Rc8 {[%clk 0:04:00.9]} 9. d3 {[%clk 0:04:19.1]} 9... Be7 {[%clk
0:03:47.8]} 10. Qg3 {[%clk 0:04:16.6]} 10... Nd4 {[%clk 0:03:39.5]} 11. Nxd4
{[%clk 0:04:14.2]} 11... exd4 {[%clk 0:03:38.3]} 12. Bd2 {[%clk 0:04:12.6]}
12... Nf6 {[%clk 0:03:14.8]} 13. Nxe7 {[%clk 0:04:08.2]} 13... Kxe7 {[%clk
0:03:06.6]} 14. O-O {[%clk 0:04:02.5]} 14... Rhg8 {[%clk 0:02:51.4]} 15. f4
{[%clk 0:03:59.4]} 15... d5 {[%clk 0:02:44.7]} 16. Rae1 {[%clk 0:03:43.9]} 16...
Ng4 {[%clk 0:02:33]} 17. f5 {[%clk 0:03:38.7]} 17... Qb6 {[%clk 0:01:51.4]} 18.
Qxg4 {[%clk 0:03:29.8]} 18... Qxb2 {[%clk 0:01:50]} 19. Bg5+ {[%clk 0:03:24.5]}
19... Kd7 {[%clk 0:01:46.8]} 20. fxg6+ {[%clk 0:03:23.1]} 20... Kd6 {[%clk
0:01:35.6]} 21. Rf6+ {[%clk 0:03:18.7]} 21... Kc5 {[%clk 0:01:29.7]} 22. Qf5
{[%clk 0:03:05.8]} 22... c6 {[%clk 0:01:06.1]} 23. exd5 {[%clk 0:03:01.5]} 23...
Qxc2 {[%clk 0:01:00.4]} 24. dxc6+ {[%clk 0:02:58.8]} 24... Kb6 {[%clk
0:00:56.1]} 25. cxb7+ {[%clk 0:02:55]} 25... Kc7 {[%clk 0:00:47.2]} 26. Rxf7+
{[%clk 0:02:53.1]} 26... Kb6 {[%clk 0:00:44.2]} 27. bxc8=Q {[%clk 0:02:44.5]}
27... Rxc8 {[%clk 0:00:41.8]} 28. Qe6+ {[%clk 0:02:39.8]} 28... Kc5 {[%clk
0:00:40.1]} 29. Be7+ {[%clk 0:02:33]} 29... Kb5 {[%clk 0:00:36.8]} 30. Rf5+
{[%clk 0:02:31.7]} 30... Ka4 {[%clk 0:00:34.7]} 31. Qa6# {[%clk 0:02:30.3]} 1-0

[Event "Live Chess"]
[Site "Chess.com"]
[Date "2023.05.20"]
[Round "-"]
[White "LL220284LL"]
[Black "jagbama"]
[Result "1-0"]
[WhiteElo "2406"]
[BlackElo "1145"]
[TimeControl "300"]
[EndTime "10:42:38 PDT"]
[Termination "LL220284LL won on time"]

1. b3 {[%clk 0:04:59.3]} 1... Nc6 {[%clk 0:04:54.8]} 2. Bb2 {[%clk 0:04:57.7]}
2... Nf6 {[%clk 0:04:52.6]} 3. e3 {[%clk 0:04:56.8]} 3... d6 {[%clk 0:04:50.7]}
4. Be2 {[%clk 0:04:56]} 4... e5 {[%clk 0:04:49.1]} 5. c4 {[%clk 0:04:55.4]} 5...
g6 {[%clk 0:04:36.6]} 6. Nc3 {[%clk 0:04:53.3]} 6... a6 {[%clk 0:04:33.1]} 7. d3
{[%clk 0:04:51.3]} 7... Bg7 {[%clk 0:04:31.8]} 8. Nf3 {[%clk 0:04:50.1]} 8...
Be6 {[%clk 0:04:21.8]} 9. O-O {[%clk 0:04:43.9]} 9... e4 {[%clk 0:04:06.3]} 10.
Nd4 {[%clk 0:04:37.4]} 10... Nxd4 {[%clk 0:03:58.3]} 11. exd4 {[%clk 0:04:31.9]}
11... exd3 {[%clk 0:03:41.5]} 12. Bxd3 {[%clk 0:04:29.5]} 12... O-O {[%clk
0:03:38.3]} 13. Re1 {[%clk 0:04:17]} 13... d5 {[%clk 0:03:34.4]} 14. Ne2 {[%clk
0:04:12.2]} 14... b5 {[%clk 0:03:22.5]} 15. Nf4 {[%clk 0:04:06.8]} 15... Bg4
{[%clk 0:03:09]} 16. f3 {[%clk 0:04:02.6]} 16... Bd7 {[%clk 0:03:03.6]} 17. cxd5
{[%clk 0:03:58.6]} 17... c6 {[%clk 0:02:43.6]} 18. dxc6 {[%clk 0:03:49.2]} 18...
Bxc6 {[%clk 0:02:40.3]} 19. Rc1 {[%clk 0:03:48.5]} 19... Rc8 {[%clk 0:02:33]}
20. Bf1 {[%clk 0:03:37.5]} 20... Bh6 {[%clk 0:02:24.8]} 21. g3 {[%clk
0:03:19.5]} 21... Bxf4 {[%clk 0:02:04.6]} 22. gxf4 {[%clk 0:03:17.7]} 22... Nd5
{[%clk 0:01:57]} 23. Qd2 {[%clk 0:03:09.3]} 23... Qh4 {[%clk 0:01:48.5]} 24. Re5
{[%clk 0:02:58.2]} 24... Nxf4 {[%clk 0:01:39]} 25. d5 {[%clk 0:02:53.7]} 25...
Bd7 {[%clk 0:01:08.2]} 26. Rxc8 {[%clk 0:02:48.8]} 26... Rxc8 {[%clk 0:00:58.5]}
27. Re4 {[%clk 0:02:47.4]} 27... Nh3+ {[%clk 0:00:47.1]} 28. Bxh3 {[%clk
0:02:45.6]} 28... Qxh3 {[%clk 0:00:45.7]} 29. Qd4 {[%clk 0:02:42.4]} 29... f6
{[%clk 0:00:01.6]} 30. Qxf6 {[%clk 0:02:39]} 1-0

[Event "Live Chess"]
[Site "Chess.com"]
[Date "2023.05.20"]
[Round "-"]
[White "LaupMiths"]
[Black "Nazarenko_vital"]
[Result "1-0"]
[WhiteElo "1826"]
[BlackElo "1599"]
[TimeControl "300"]
[EndTime "10:42:40 PDT"]
[Termination "LaupMiths won on time"]

1. d4 {[%clk 0:04:56.3]} 1... Nf6 {[%clk 0:04:57.9]} 2. Nf3 {[%clk 0:04:54.2]}
2... b5 {[%clk 0:04:55.8]} 3. g3 {[%clk 0:04:49.6]} 3... Bb7 {[%clk 0:04:54.1]}
4. Bg2 {[%clk 0:04:49.3]} 4... e6 {[%clk 0:04:52.4]} 5. O-O {[%clk 0:04:48.8]}
5... c5 {[%clk 0:04:51.1]} 6. b3 {[%clk 0:04:47.9]} 6... Nc6 {[%clk 0:04:45]} 7.
e3 {[%clk 0:04:43.7]} 7... h6 {[%clk 0:04:34.5]} 8. Bb2 {[%clk 0:04:38.9]} 8...
Be7 {[%clk 0:04:32.9]} 9. dxc5 {[%clk 0:04:33.4]} 9... Bxc5 {[%clk 0:04:29.6]}
10. Nbd2 {[%clk 0:04:32.8]} 10... Be7 {[%clk 0:04:22.9]} 11. c4 {[%clk
0:04:30.2]} 11... a6 {[%clk 0:04:12.8]} 12. Qe2 {[%clk 0:04:25.9]} 12... b4
{[%clk 0:03:58.7]} 13. Rfd1 {[%clk 0:04:23]} 13... O-O {[%clk 0:03:56.4]} 14.
Rac1 {[%clk 0:04:13.9]} 14... Qc7 {[%clk 0:03:36.7]} 15. Qd3 {[%clk 0:04:04.7]}
15... Rfd8 {[%clk 0:03:21.3]} 16. Ne4 {[%clk 0:03:55.4]} 16... Nxe4 {[%clk
0:03:18.2]} 17. Qxe4 {[%clk 0:03:54.2]} 17... f5 {[%clk 0:03:11]} 18. Qc2 {[%clk
0:03:46.7]} 18... Bf6 {[%clk 0:02:43.4]} 19. Rd2 {[%clk 0:03:38.5]} 19... Bxb2
{[%clk 0:02:40.2]} 20. Qxb2 {[%clk 0:03:37.1]} 20... e5 {[%clk 0:02:16.8]} 21.
Nxe5 {[%clk 0:03:19.2]} 21... d6 {[%clk 0:01:09.8]} 22. Bd5+ {[%clk 0:02:57.6]}
22... Kh7 {[%clk 0:00:52.6]} 23. Nf3 {[%clk 0:02:28.2]} 23... Ne7 {[%clk
0:00:43.8]} 24. Bxb7 {[%clk 0:02:23.9]} 24... Qxb7 {[%clk 0:00:41.4]} 25. Nh4
{[%clk 0:02:17.7]} 25... Qe4 {[%clk 0:00:34.8]} 26. Rcd1 {[%clk 0:02:13.3]}
26... Rac8 {[%clk 0:00:10.5]} 27. Rd4 {[%clk 0:02:11.3]} 27... Qc6 {[%clk
0:00:02.8]} 28. Qb1 {[%clk 0:02:10.7]} 1-0

[Event "Live Chess"]
[Site "Chess.com"]
[Date "2023.05.20"]
[Round "-"]
[White "WelshTiger"]
[Black "BogdanBeleiUkraine"]
[Result "1-0"]
[WhiteElo "2428"]
[BlackElo "1203"]
[TimeControl "300"]
[EndTime "10:42:42 PDT"]
[Termination "WelshTiger won by checkmate"]

1. e4 {[%clk 0:04:56.1]} 1... e5 {[%clk 0:04:58.7]} 2. Nf3 {[%clk 0:04:54.7]}
2... Nc6 {[%clk 0:04:57.7]} 3. d4 {[%clk 0:04:53.3]} 3... exd4 {[%clk
0:04:55.5]} 4. Bc4 {[%clk 0:04:53]} 4... h6 {[%clk 0:04:49]} 5. O-O {[%clk
0:04:51]} 5... Bc5 {[%clk 0:04:46.9]} 6. c3 {[%clk 0:04:49.2]} 6... dxc3 {[%clk
0:04:44.9]} 7. Bxf7+ {[%clk 0:04:48.2]} 7... Kf8 {[%clk 0:04:36]} 8. Bxg8 {[%clk
0:04:44.8]} 8... Kxg8 {[%clk 0:04:33.3]} 9. Qd5+ {[%clk 0:04:43.8]} 9... Kh7
{[%clk 0:04:26.5]} 10. Qxc5 {[%clk 0:04:43]} 10... b6 {[%clk 0:04:20.8]} 11.
Qf5+ {[%clk 0:04:39.8]} 11... g6 {[%clk 0:04:17.8]} 12. Qf7# {[%clk 0:04:38.3]}
1-0